Department Family,Entity,Date,Expense Type,Expense Area,Supplier,Transaction Number,AP Amount,VAT Registration Number,Purchase Invoice Number
Department of Health,Bridgewater Community Healthcare NHS Foundation Trust,31-May-16,Hcare Srv Rec NHS Trust,Midwifery Halton,ST HELENS & KNOWSLEY HOSPITALS NHS TRUST,18677879,"57,409.00",654943996,16750104
Department of Health,Bridgewater Community Healthcare NHS Foundation Trust,31-May-16,Stationery,Procurement,CLARES OFFICE SUPPLIES LTD,18677881,"33,020.47",107340310,SINV00329273
Department of Health,Bridgewater Community Healthcare NHS Foundation Trust,31-May-16,Stationery,Procurement,CLARES OFFICE SUPPLIES LTD,18677883,"33,020.47",107340310,SINV00329272
Department of Health,Bridgewater Community Healthcare NHS Foundation Trust,31-May-16,Phone Rental and Calls,Divisional Management Team,NHS CHESHIRE AND MERSEYSIDE CSU,18705853,"48,380.24",,7310302603
Department of Health,Bridgewater Community Healthcare NHS Foundation Trust,31-May-16,CCG Income,Contractual Income,NHS HALTON CCG,18705862,"183,940.00",,7012200392
Department of Health,Bridgewater Community Healthcare NHS Foundation Trust,31-May-16,Services Received - NHSTs,Information Community - ALW,ST HELENS & KNOWSLEY HOSPITALS NHS TRUST,18715410,"163,666.67",654943996,16759304
Department of Health,Bridgewater Community Healthcare NHS Foundation Trust,31-May-16,Services Received - NHSTs,Warrington- Dental,EAST CHESHIRE NHS TRUST,18715412,"74,000.00",654919892,17487749
Department of Health,Bridgewater Community Healthcare NHS Foundation Trust,31-May-16,Services Received - NHSTs,Walk In Centre Halton,ST HELENS & KNOWSLEY HOSPITALS NHS TRUST,18725170,"33,572.79",654943996,16759139
Department of Health,Bridgewater Community Healthcare NHS Foundation Trust,31-May-16,SrvcsRecd-FoundationTrust,Estates Management,WARRINGTON & HALTON HOSPITALS NHS FOUNDATION TRUST,18725172,"25,477.75",654404741,15357199
Department of Health,Bridgewater Community Healthcare NHS Foundation Trust,31-May-16,OOH Comms Equip/GP Rotas,General Medical Services,DR JK AGARWALA,18729549,"30,871.06",,APR16 2924
Department of Health,Bridgewater Community Healthcare NHS Foundation Trust,31-May-16,Rates,Health Services at Wolves,WARRINGTON BOROUGH COUNCIL,18769322,"26,589.50",152847160,1025462974302031626589
Department of Health,Bridgewater Community Healthcare NHS Foundation Trust,31-May-16,Rates,89 Spencer House,WARRINGTON BOROUGH COUNCIL,18769326,"51,688.00",152847160,1025579564502031651688
Department of Health,Bridgewater Community Healthcare NHS Foundation Trust,31-May-16,Rates,81a&b Spencer House (clinic/ground floor),WARRINGTON BOROUGH COUNCIL,18769329,"25,595.50",152847160,1025463074102031625595
Department of Health,Bridgewater Community Healthcare NHS Foundation Trust,31-May-16,Service Charge,Health Services at Wolves,WARRINGTON FC LTD,18769332,"37,620.00",152685258,19015
Department of Health,Bridgewater Community Healthcare NHS Foundation Trust,31-May-16,Rent,Computing,WIGAN BOROUGH COUNCIL,18769345,"90,000.00",,71233401504
Department of Health,Bridgewater Community Healthcare NHS Foundation Trust,31-May-16,Drugs,Medicines Management,NHS BUSINESS SERVICES AUTHORITY,18784807,"92,074.10",654434729,1000045732
Department of Health,Bridgewater Community Healthcare NHS Foundation Trust,31-May-16,"Books, Journals & Subscr",Healthcare Libraries Unit - ALW,WOLTERS KLUWER HEALTH (MEDICAL RESEARCH) LTD,18799780,"100,622.41",818308526,OL10797
Department of Health,Bridgewater Community Healthcare NHS Foundation Trust,31-May-16,"Books, Journals & Subscr",Healthcare Libraries Unit - ALW,PRIMAL PICTURES LTD,18846974,"26,400.00",,4106776
Department of Health,Bridgewater Community Healthcare NHS Foundation Trust,31-May-16,"Books, Journals & Subscr",Healthcare Libraries Unit - ALW,EBSCO INTERNATIONAL INC,18856801,"40,420.80",607979689,1623887
Department of Health,Bridgewater Community Healthcare NHS Foundation Trust,31-May-16,"Books, Journals & Subscr",Healthcare Libraries Unit - ALW,OXFORD UNIVERSITY PRESS,18892222,"74,271.66",125506730,XI09847031
Department of Health,Bridgewater Community Healthcare NHS Foundation Trust,31-May-16,"Books, Journals & Subscr",Healthcare Libraries Unit - ALW,EBSCO INTERNATIONAL INC,18919312,"80,841.60",607979689,1624000
Department of Health,Bridgewater Community Healthcare NHS Foundation Trust,31-May-16,Rates,Bevan House,WIGAN BOROUGH COUNCIL,18928341,"52,682.00",,58000002037318031652682
Department of Health,Bridgewater Community Healthcare NHS Foundation Trust,31-May-16,Hcare Srv Rec NHS Trust,Midwifery Halton,ST HELENS & KNOWSLEY HOSPITALS NHS TRUST,18928590,"51,120.00",654943996,16760375
Department of Health,Bridgewater Community Healthcare NHS Foundation Trust,31-May-16,Hlthcre-Foundation Trsts,Midwifery Halton,WARRINGTON & HALTON HOSPITALS NHS FOUNDATION TRUST,18955192,"36,000.00",654404741,15346390
Department of Health,Bridgewater Community Healthcare NHS Foundation Trust,31-May-16,Lease Rents,Atherton Health Centre,COMMUNITY HEALTH PARTNERSHIPS,18955226,"27,519.70",782562113,50405869
Department of Health,Bridgewater Community Healthcare NHS Foundation Trust,31-May-16,Lease Rents,Bath Street,COMMUNITY HEALTH PARTNERSHIPS,18955229,"42,703.13",782562113,50405870
Department of Health,Bridgewater Community Healthcare NHS Foundation Trust,31-May-16,Lease Rents,Leigh Infirmary,COMMUNITY HEALTH PARTNERSHIPS,18955238,"49,730.62",782562113,50405876
Department of Health,Bridgewater Community Healthcare NHS Foundation Trust,31-May-16,Lease Rents,Claire House,COMMUNITY HEALTH PARTNERSHIPS,18955244,"31,791.12",782562113,50405878
Department of Health,Bridgewater Community Healthcare NHS Foundation Trust,31-May-16,Lease Rents,Widnes HCRC,COMMUNITY HEALTH PARTNERSHIPS,18955250,"34,746.74",782562113,50405883
Department of Health,Bridgewater Community Healthcare NHS Foundation Trust,31-May-16,Lease Rents,Chandler House,COMMUNITY HEALTH PARTNERSHIPS,18955251,"35,190.83",782562113,50405884
Department of Health,Bridgewater Community Healthcare NHS Foundation Trust,31-May-16,Lease Rents,Newton Community Hospital,COMMUNITY HEALTH PARTNERSHIPS,18968143,"65,120.45",782562113,50405879
Department of Health,Bridgewater Community Healthcare NHS Foundation Trust,31-May-16,Lease Rents,Pemberton Health Centre,COMMUNITY HEALTH PARTNERSHIPS,18968145,"48,250.86",782562113,50405881
Department of Health,Bridgewater Community Healthcare NHS Foundation Trust,31-May-16,Lease Rents,Platt Bridge Community HC,COMMUNITY HEALTH PARTNERSHIPS,18968146,"58,879.01",782562113,50405882
